{"text_format":"1","workbook":"xlsx","n_sheets":7,"sheets":["児童館事業年間活動報告書10-1雛型","児童館事業年間活動報告書10-２雛型","児童館事業年間活動報告書10-３雛型","児童館事業年間活動報告書10-４雛型","＜様式10-5＞","Sheet1","ファイル一覧"],"not_rendered":{"charts":0,"images":0,"macros":1,"external_links":0,"defined_names":5,"comments":0,"pivot_tables":0},"unopened":[],"bounds":{"document_bytes":16777216,"sheet_cells":100000,"rows_first":2000,"rows_last":500,"rows_between":2000,"halvings":0,"cell_chars":16384,"cell_head_chars":4096},"cells_cut":0,"cells_raw":0,"read":"whole","date_system":"1900"}

{"sheet":"児童館事業年間活動報告書10-1雛型","index":0,"n_rows":54,"n_cols":17,"rows_kept":54,"cut":false,"hidden":false,"merged":[[48,8,49,8],[1,3,1,6],[3,11,3,13],[2,4,2,14],[2,0,4,1],[3,4,4,4],[3,9,4,9],[3,10,4,10],[3,14,4,14],[3,7,3,8],[3,5,3,6],[5,0,49,0],[33,5,34,5],[48,3,49,3],[48,4,49,4],[48,5,49,5],[48,1,49,2],[33,2,34,2],[33,3,34,3],[35,1,47,1],[5,1,34,1],[33,4,34,4],[33,6,34,6],[33,13,34,13],[33,10,34,10],[46,13,47,13],[33,8,34,8],[33,7,34,7],[33,9,34,9],[33,14,34,14],[33,11,34,11],[46,14,47,14],[46,10,47,10],[46,11,47,11],[33,12,34,12],[46,12,47,12],[48,14,49,14],[46,2,47,2],[46,3,47,3],[46,4,47,4],[46,5,47,5],[46,6,47,6],[46,7,47,7],[46,8,47,8],[46,9,47,9],[48,7,49,7],[48,10,49,10],[48,11,49,11],[48,12,49,12],[48,6,49,6],[48,13,49,13],[48,9,49,9]]}
[null,null,null,null,null,null,null,null,null,null,null,null,null,null,null,null,"＜様式１０－１＞"]
[null,null,null,"令和4 (2022) 年度",null,null,null,"児　童　館　事　業　年　間　活　動　報　告　書",null,null,null,null,null,null,null,null,"京都市藤森竹田児童館"]
[null,null,null,null,"参　　　　加　　　　人　　　　数"]
[null,null,"活動名","実施回数","乳幼児","小１～３年",null,"小４～６年",null,"中高生","大人","ボランティア",null,null,"合計","内　　　　　　　　　　　　　　　容","成　果　と　課　題"]
[null,null,null,null,null,"自由来館","学童クラブ","自由来館","学童クラブ",null,null,"中高生","大学生","大人"]
["　　　　子　　ど　　も　　育　　成　　機　　能","基　　　　本　　　　活　　　　動","（3）行事活動"]
[null,null,"避難訓練",12,0,13,142,0,20,0,9,0,0,0,{"$f":"SUM(E7:N7)","v":184},"火災・台風がおきた時に冷静に対処し、安全に避難することを目的とし、毎月1回学童ｸﾗﾌﾞ児童中心に実施。","毎月実施。土曜日や1年生対象日など、時間帯や対象を限定するなど変化をつけ、緊張感を持てるように工夫した。火事・地震・水害など災害によって避難方法が変わるので、いざというときに困らないよう訓練後の話も丁寧に行った。"]
[null,null,"菜園活動",14,0,12,66,0,5,0,0,0,0,0,{"$f":"SUM(E8:N8)","v":83},"児童館周りや、花壇周辺の雑草抜き等をみんなで力を合わせて行なう。","学童クラブ・自由来館・地域の方にも呼びかけたことにより、一定数の人数で行なうことができたが、雨天時の取り組みが事前に決められていないこともあった。"]
[null,null,"はりえクラブ",15,0,2,17,1,16,0,0,0,0,0,36,"それぞれ作りたい絵柄を選び、数回のクラブ活動の時間を使って一つの作品を作り上げる。","登録制のクラブ。主に土曜日に実施。これまで4年生以上を対象としてきたが、2年生の利用が多いこともあり、後期から2年生以上対象とした。作品を完成させるには集中力や根気が必要だが、子どもたちが作りたい作品に楽しみながら取り組んでもらった。"]
[null,null,"雑草抜き",1,0,0,2,0,0,0,0,0,0,0,2,"児童館の雑草抜きを行なう。","児童館の玄関前の美化活動を行い、協力してくれた子ども達と喜びを共有できた。"]
[null,null,"なかよしマーケット工作",2,0,1,30,0,0,0,null,0,0,0,31,"各児童館で廃材を使って商品を作成する。","藤森竹田・住吉・深草・うずら・伏見板橋の５館それぞれで、廃材を使った商品作りを行なった。様々な作品を分担して作ることで、マーケット当日を喜んでもらえる内容にすることができた。"]
[null,null,"なかよしマーケット　仕入れ",1,0,0,0,0,0,0,8,0,0,0,8,"各児童館で作成した商品を伏見地域北部体育館に持ち寄り、仕入れを行なう。","各児童館で作った工作を施設ごとに分けて持ち帰った。今年度も児童の引率は行うことができず、選んで仕入れを行うことはできなかった。"]
[null,null,"手作り工房",5,0,14,22,5,4,0,1,0,0,0,46,"様々な工作作品作りを楽しむ。定員申込制。","毎回、身近な廃材で、子ども達の喜ぶ工作を企画。申込開始の前に見本を掲示。身近な物で作品を作ることができる楽しさと喜びを感じてもらった。"]
[null,null,"ハロウィンを楽しもう",1,2,25,13,3,1,0,2,0,0,0,46,"ハロウィンにちなんだミッションやゲームを行なう。","子ども達と共に仮装をし、地域の施設に協力してもらい、お菓子をもらいに道中をパレードで行進した。児童館・学童クラブとその保護者・地域と協同し、コロナ禍でもできることを工夫し、模索しつつ、ハロウィンを実現できた。"]
[null,null,"プチふじたけまつり",1,3,21,14,4,1,0,6,0,0,8,57,"伏見地域北部体育館で、オープニングに紙芝居の読み聞かせをしていただき、その後5つのゲームコーナーを設置しコーナー遊びをしてもらった。最後には全員で抽選会を行なった。","普段の土曜日利用の学童クラブの子どもだけでなく、自由来館もたくさんの参加があった。また、地域の乳幼児さんや高学年の子ども達の参加もあり賑やかなおまつりになった。今年度はプチだったが、開催を楽しみにしている様子がたくさんあり、来年度以降も引き続き実施していきたい。"]
[null,null,"大掃除",1,17,13,3,3,0,0,0,0,0,0,36,"年末に1年間利用した児童館の掃除を行なう。","担当ごとに部屋を分けて掃除を行った。子ども達のやる気も高く、お願いすると快く引き受けて良く頑張ってくれている子が多かった。子ども達も、与えられた役割を精一杯頑張ってくれていた。"]
[null,null,"親子交流行事「こんぺいとうアート」",1,0,2,7,0,2,1,1,0,0,0,13,"事前申込制で参加費を徴収し、こんぺいとうで好きな絵柄を作る。","昨年、中止になったこともあって楽しみにしてくれている子どもたちが多かった。普段お菓子として目にしているこんぺいとうで作品を作ることができ、子どもたちは楽しそうに取り組んでいた。"]
[null,null,null,null,0,null,null,0,null,null,null,0,0,0,0]
[null,null,null,null,0,null,null,0,null,0,null,0,0,0,0]
[null,null,null,null,null,null,null,null,null,null,null,null,null,null,0]
[null,null,null,null,null,null,null,null,null,null,null,null,null,null,0]
[null,null,null,null,null,null,null,null,null,null,null,null,null,null,0]
[null,null,null,null,null,null,null,null,null,null,null,null,null,null,0]
[null,null,null,null,null,null,null,null,null,null,null,null,null,null,0]
[null,null,null,null,null,null,null,null,null,null,null,null,null,null,0]
[null,null,null,null,null,null,null,null,null,null,null,null,null,null,0]
[null,null,null,null,null,null,null,null,null,null,null,null,null,null,0]
[null,null,null,null,null,null,null,null,null,null,null,null,null,null,0]
[null,null,null,null,null,null,null,null,null,null,null,null,null,null,0]
[null,null,null,null,null,null,null,null,null,null,null,null,null,null,0]
[null,null,null,null,null,null,null,null,null,null,null,null,null,null,0]
[null,null,null,null,null,null,null,null,null,null,null,null,null,null,0]
[null,null,null,null,null,null,null,null,null,null,null,null,null,null,{"$f":"SUM(E33:N33)","v":0}]
[null,null,"合　　　　計",{"$f":"SUM(D7:D33)","v":54},22,103,316,16,49,1,27,0,0,8,542]
[]
[null,"推進活動",null,null,null,null,null,null,null,null,null,null,null,null,{"$f":"SUM(D36:N36)","v":0}]
[null,null,null,null,null,null,null,null,null,null,null,null,null,null,{"$f":"SUM(E37:N37)","v":0}]
[null,null,null,null,null,null,null,null,null,null,null,null,null,null,{"$f":"SUM(E38:N38)","v":0}]
[null,null,null,null,null,null,null,null,null,null,null,null,null,null,0]
[null,null,null,null,null,null,null,null,null,null,null,null,null,null,0]
[null,null,null,null,null,null,null,null,null,null,null,null,null,null,0]
[null,null,null,null,null,null,null,null,null,null,null,null,null,null,0]
[null,null,null,null,null,null,null,null,null,null,null,null,null,null,0]
[null,null,null,null,null,null,null,null,null,null,null,null,null,null,0]
[null,null,null,null,null,null,null,null,null,null,null,null,null,null,0]
[null,null,null,null,null,null,null,null,null,null,null,null,null,null,{"$f":"SUM(E46:N46)","v":0}]
[null,null,"合　　　　計",{"$f":"SUM(D36:D46)","v":0},{"$f":"SUM(E36:E46)","v":0},{"$f":"SUM(F36:F46)","v":0},{"$f":"SUM(G36:G46)","v":0},0,0,0,0,0,0,0,{"$f":"SUM(O36:O46)","v":0}]
[]
[null,"子ども育成機能　合　計",null,{"$f":"D34+D47","v":54},{"$f":"E34+E47","v":22},{"$f":"F34+F47","v":103},316,16,49,1,27,0,0,8,{"$f":"O34+O47","v":542}]
[]
[]
["＊注　基本活動は，指針に基づき(２)遊びの教室活動(３)行事活動(４)クラブ活動(５)地域間交流促進活動(６)障害のある児童の居場所づくりと活動への参加促進(７)思春期児童の活動支援に分類して記入すること。"]
["　　　推進活動は，指針に基づき(９)地域を知る活動(１０)移動児童館活動に分類して記入すること。"]
["　　　指定活動は，指定児童館のみ別途報告すること。"]

{"sheet":"児童館事業年間活動報告書10-２雛型","index":1,"n_rows":53,"n_cols":21,"rows_kept":53,"cut":false,"hidden":false,"merged":[[36,17,37,19],[43,17,44,20],[38,18,39,20],[38,3,39,5],[38,6,39,7],[38,8,39,14],[36,16,37,16],[38,15,39,17],[36,3,37,4],[43,3,44,5],[36,20,37,20],[43,8,44,16],[5,1,42,1],[23,2,24,2],[43,6,44,7],[31,3,31,4],[32,3,32,4],[23,6,24,6],[35,3,35,4],[36,6,37,10],[23,3,24,3],[25,13,26,15],[25,3,26,4],[25,5,26,5],[25,16,26,16],[25,6,26,10],[5,0,50,0],[2,0,4,1],[2,4,2,14],[3,4,4,4],[3,5,3,6],[3,9,4,9],[3,10,4,10],[3,11,3,13],[23,4,24,4],[36,13,37,15],[36,11,37,11],[36,5,37,5],[30,3,30,4],[29,3,29,4],[43,1,50,1],[3,15,3,18],[3,19,3,20],[5,19,5,20],[3,7,3,8],[23,5,24,5],[3,14,4,14],[23,8,24,8],[23,9,24,9],[23,10,24,10],[23,7,24,7],[23,11,24,11],[23,12,24,12],[5,15,5,18],[6,15,6,18],[7,15,7,18],[8,15,8,18],[9,15,9,18],[45,3,46,5],[45,6,46,7],[45,8,46,16],[45,17,47,20],[6,19,6,20],[7,19,7,20],[8,19,8,20],[9,19,9,20],[23,13,24,13],[23,14,24,14],[25,11,26,11],[33,3,33,4],[25,20,26,20],[27,3,27,4],[28,3,28,4],[25,17,26,19]]}
[null,null,null,null,null,null,null,null,null,null,null,null,null,null,null,null,null,null,null,null,"＜様式１０－２＞"]
[null,null,null,"令和4年（2022）年度　　　　　　児　童　館　事　業　年　間　活　動　報　告　書　　　  　  　　（　京都市藤森竹田　　）児　童　館"]
[null,null,null,null,"参　　　　加　　　　人　　　　数"]
[null,null,"活動名","実施回数","乳幼児","小１～３年",null,"小４～６年",null,"中高生","大人","ボランティア",null,null,"合計","内　　　　　　　　　　　　　　　容",null,null,null,"成　果　と　課　題"]
[null,null,null,null,null,"自由来館","学童クラブ","自由来館","学童クラブ",null,null,"中高生","大学生","大人"]
["子　　ど　　も　　家　　庭　　支　　援　　活　　動　　","基　　　　本　　　　活　　　　動","あそぼうday",84,194,0,0,0,0,3,172,0,0,0,{"$f":"SUM(E6:N6)","v":369},"密を避け、おもちゃの消毒を十分に行えるよう、定員を設けて行った。毎週火曜日・金曜日に2階のお部屋で大型遊具を開放。行事がない日でも気軽に遊びに来てもらえたら…という思いから実施を続けている。",null,null,null,"毎週2回開催することでコンスタントに参加してくださる乳幼児親子が増えた。そのためお母さん同士の交流も増え、お母さんの一息つく場になっていた。"]
[null,null,"読み聞かせタイム",9,24,0,0,0,0,0,21,0,0,0,{"$f":"SUM(E7:N7)","v":45},"あそぼうdayに遊びに来てくれている親子を対象に読み聞かせを行なう。",null,null,null,"「読み聞かせがあるから来ました」と話してくださるお母さんもいらっしゃった。一息ついて、ゆっくり本読みを楽しんでもらった。"]
[null,null,"幼児クラブ『きらきら』",30,143,0,0,0,0,0,133,0,0,0,{"$f":"SUM(E8:N8)","v":276},"満1歳半以上～就園前の乳幼児親子を対象とした登録制のクラブ。天候の関係でお休みをする時もあったが、感染防止に気をつけながら実施させてもらうことができた。",null,null,null,"6組登録。お家ではできない内容や季節を感じる企画をし、1年通じて同じ顔ぶれで取組に参加することで、成長につながったと言って下さる保護者も多かった。"]
[null,null,"すくすくひろば",30,180,1,0,1,0,0,186,0,0,0,368,"概ね０歳～１歳半までの乳幼児親子を対象とした登録制のひろば。保護者同士の距離をあけたり、工作の材料など感染防止に気をつけながら実施させていただいた。",null,null,null,"5月当初は月齢の差も大きく、取り組みの内容も難しかったが、徐々に子ども達もお母さん達も慣れて来てくれて、親子共に楽しんでもらう場を提供できたように思う。"]
[null,null,"おもいっきりあそぼうday",1,19,0,0,0,0,0,19,0,0,0,38,"伏見北部地域体育館を利用し、あそぼうdayを開催した。",null,null,null,"普段よりも広々とした空間で遊んでもらい、身体を使いおもいっきり遊んでもらった。また、目玉コーナーの段ボール迷路や缶バッジ作成、お菓子つりのコーナーもとても喜んで下さった。このような企画を楽しみにされているという声もあった。"]
[null,null,null,null,null,null,null,null,null,null,null,null,null,null,0]
[null,null,null,null,null,null,null,null,null,null,null,null,null,null,0]
[null,null,null,null,null,null,null,null,null,null,null,null,null,null,0]
[null,null,null,null,null,null,null,null,null,null,null,null,null,null,0]
[null,null,null,null,null,null,null,null,null,null,null,null,null,null,0]
[null,null,null,null,null,null,null,null,null,null,null,null,null,null,0]
[null,null,null,null,null,null,null,null,null,null,null,null,null,null,0]
[null,null,null,null,null,null,null,null,null,null,null,null,null,null,0]
[null,null,null,null,null,null,null,null,null,null,null,null,null,null,0]
[null,null,null,null,null,null,null,null,null,null,null,null,null,null,0]
[null,null,null,null,null,null,null,null,null,null,null,null,null,null,0]
[null,null,null,null,null,null,null,null,null,null,null,null,null,null,0]
[null,null,null,null,null,null,null,null,null,null,null,null,null,null,{"$f":"SUM(E23:N23)","v":0}]
[null,null,"合　　　　計",{"$f":"SUM(D6:D23)","v":154},560,1,0,1,0,3,531,{"$f":"SUM(L6:L23)","v":0},0,0,{"$f":"SUM(O6:O23)","v":1096}]
[]
[null,null,null,"子どもの年齢",null,"件数","受　理　及　び　相　談　経　路",null,null,null,null,"件数",null,"相　談　内　容",null,null,"件数","つないだ機関等",null,null,"件数"]
[]
[null,null,null,"乳児",null,4,"児童館にて直接受理",null,null,null,null,null,null,"健全育成問題",null,null,null,"児童相談所"]
[null,null,null,"幼児",null,4,"児童相談所",null,null,null,null,1,null,"家庭養育問題",null,null,1,"保健所"]
[null,null,null,"小１～３年（自由来館）",null,null,"保健所",null,null,null,null,null,null,"成長･発達問題",null,null,8,"子ども支援センター"]
[null,null,"(3)子育て家庭相談・援助","小１～３年（学童）",null,3,"子ども支援センター",null,null,null,null,null,null,"教育問題",null,null,null,"幼稚園･保育園"]
[null,null,"   活動","小４～６年（自由来館）",null,null,"主任児童委員",null,null,null,null,null,null,"非行･問題行動",null,null,null,"小学校"]
[null,null,null,"小４～６年（学童）",null,null,"その他",null,null,null,null,null,null,"その他",null,null,2,"中学校"]
[null,null,null,"中学生",null,null,null,null,null,null,null,null,null,null,null,null,null,"総合支援学校"]
[null,null,null,"高校生",null,null,null,null,null,null,null,null,null,null,null,null,null,"その他"]
[]
[null,null,null,"件数　計",null,{"$f":"SUM(F28:F36)","v":11},"－",null,null,null,null,{"$f":"SUM(L28:L36)","v":1},null,"－",null,null,{"$f":"SUM(Q28:Q36)","v":11},"－",null,null,{"$f":"SUM(U28:U36)","v":0}]
[]
[null,null,null,"グループ名",null,null,"構成人数",null,"活　動　内　容",null,null,null,null,null,null,"育成・支援内容",null,null,"成果と課題"]
[]
[null,null,"(4)子育てグループを育成"]
[null,null,"   ・支援する活動"]
[]
[null,"推進活動",null,"活動名",null,null,"実施回数",null,"活　　動　　内　　容",null,null,null,null,null,null,null,null,"成　果　と　課　題"]
[]
[null,null,null,"京都市家庭ごみ有料指定袋引換",null,null,"随時",null,"地域の子育て家庭の保護者が持参した京都市発行の無料引換券を京都市家庭ごみ有料指定袋と引き換える。",null,null,null,null,null,null,null,null,"引換に来られた保護者の方に、児童館のチラシなどを配布することができ、取組のご案内をする機会となる。その後、ほっとサロンやあそぼうdayに来て下さる方もいる。"]
[null,null,"(5)子育てと健全育成に関"]
[null,null,"   する啓発活動"]
[]
[]
[]
[]
["※注　基本活動は，指針に基づき(1)乳幼児とその保護者を対象とする活動[①乳幼児クラブ活動　②乳幼児の広場活動]（２）家族参加を促す活動に分類して記入すること。"]

{"sheet":"児童館事業年間活動報告書10-３雛型","index":2,"n_rows":54,"n_cols":19,"rows_kept":54,"cut":false,"hidden":false,"merged":[[17,5,17,6],[17,16,17,17],[18,5,18,6],[18,16,18,17],[11,5,15,6],[11,16,15,17],[9,5,9,6],[10,5,10,6],[10,16,10,17],[16,5,16,6],[16,16,16,17],[9,16,9,17],[6,16,6,17],[7,16,7,17],[6,5,6,6],[7,5,7,6],[8,5,8,6],[8,16,8,17],[46,12,47,18],[44,9,45,9],[27,18,28,18],[27,16,28,17],[3,5,5,6],[44,6,45,6],[3,18,5,18],[4,15,5,15],[27,10,28,10],[3,16,5,17],[4,12,5,13],[27,12,28,13],[3,7,3,15],[4,14,5,14],[27,5,28,6],[4,8,4,9],[27,14,28,14],[29,7,29,10],[29,11,30,18],[29,3,30,6],[27,15,28,15],[27,8,28,8],[27,7,28,7],[27,11,28,11],[27,3,28,3],[53,2,54,2],[3,3,5,3],[3,4,5,4],[3,0,65,0],[46,3,47,3],[46,4,47,11],[4,10,4,11],[4,7,5,7],[3,1,65,1],[44,10,45,10],[44,8,45,8],[44,7,45,7],[27,9,28,9],[34,2,35,2],[27,4,28,4],[9,2,12,2],[20,18,21,18],[22,18,23,18],[19,16,19,17],[20,5,21,6],[22,5,23,6],[19,5,19,6],[20,16,21,17],[22,16,23,17],[25,18,26,18],[24,16,24,17],[24,5,24,6],[25,5,26,6],[25,16,26,17]]}
[null,null,null,null,null,null,null,null,null,null,null,null,null,null,null,null,null,null,"＜様式１０－３＞"]
[null,null,null,"令和4年（2022）年度　　　　　　児　童　館　事　業　年　間　活　動　報　告　書　　　  　  　　（　京都市藤森竹田　）児　童　館"]
[]
["地　　　域　　　福　　　祉　　　促　　　進　　　機　　　能","基　　　　　　本　　　　　　活　　　　　　動",null,"活　　動　　名","実施回数","主　　催",null,"参　加　人　数",null,null,null,null,null,null,null,null,"連携団体",null,"成果と課題"]
[null,null,null,null,null,null,null,"乳幼児","小１～３年",null,"小４～６年",null,"中高生",null,"大人","合　計"]
[null,null,null,null,null,null,null,null,"自由来館","学童クラブ","自由来館","学童クラブ"]
[null,null,null,"ほっとサロン",11,"竹田学区・民生児童委員会\n京都市改進保育所\n京都市藤森竹田児童館",null,138,0,0,0,0,0,133,234,{"$f":"SUM(H7:O7)","v":505},"竹田学区・民生児童委員会\n竹田地域女性会\n竹田更生保護女性会\n社会福祉法人清和園城南ホーム\n京都市改進保育所\n京都市伏見区社会福祉協議会",null,"竹田学区の民生さん、保育所との共催で実施することで、取組の楽しさだけでなく参加者の方に地域の見守る場所がたくさんあることを知ってもらえる安心感も感じてもらえた。"]
[null,null,null,"ネットワーク会議",11,"主任児童委員\n京都市改進保育所\n京都市藤森竹田児童館",null,0,0,0,0,0,0,29,58,{"$f":"SUM(H8:O8)","v":87},"竹田学区・民生児童委員会\n竹田地域女性会\n竹田更生保護女性会\n社会福祉法人清和園城南ホーム\n京都市改進保育所",null,"ほっとサロン終了後、その日の取り組みの反省、親子の様子の共有、次回以降の取組の検討を行なった。地域の乳幼児親子に安心して楽しんでもらえるよう、それぞれの機関の意見や考えを持ち寄った。"]
[null,null,null,"保育所連絡会",10,"京都市藤森竹田児童館",null,0,0,0,0,0,0,9,27,36,"京都市改進保育所",null,"毎月のそれぞれの事業所の取組の報告、翌月のお知らせ、子どもの様子などを意見交換し、地域の親子の見守りに繋げている。"]
[null,null,"(1)地域住民との交\n　流を促進する活動","伏見こどもまつり",1,"公益社団法人京都市児童館学童連盟\n伏見台6ブロック児童館学童保育所\nこどもまつり実行委員会",null,0,7,0,3,0,0,0,null,10,"京都市藤森竹田児童館\n",null,"伏見こどもまつりを今年度は、各館で同時に開催。藤森竹田児童館は図書室に射的コーナーを展開した。自由来館で遊びに来てくれる子もおり、景品は１つだが、射的コーナーで繰り返し遊んでくれる姿もあった。"]
[null,null,null,"はなまる教室",1,"京都市改進保育所",null,5,0,0,0,0,0,5,5,10,"京都市藤森竹田児童館\n第二児相",null,"保育所で実施されている事業。子ども達の保育で参加。児童館を知ってもらう機会にもなり、取組みの進め方の参考にもなった。"]
[null,null,null,"ウェーブ２１ 打ち合わせ",1,"NPO人権ネットワーク\nウェーブ21",null,0,0,0,0,0,0,1,null,1,"京都市藤森竹田児童館\n",null,"ウェーブ21の方々と協力して今年度も児童館の子ども達に向けて様々な行事を実施していただくことを話し合った。年数をかけて実施回数も増え、子どもとの関係性も作って下さり、貴重な機会となっている。"]
[null,null,null,"レクレーション",1,null,null,0,1,13,0,0,0,0,null,14,null,null,"事前申込制を取り、当日は児童館の２階を使用してお楽しみ会を行ってもらった。"]
[null,null,null,"カンフー教室",1,null,null,0,1,8,0,1,0,0,null,10,null,null,"ウェーブ21の方が、カンフーの講師の方をお呼びして、カンフーの基礎を教えて下さった。子ども達もとても喜んでいた。『うまくできない』と泣く子もいたが、経験の積み重ねのきっかけとして重要な機会になった。"]
[null,null,null,"将棋教室",2,null,null,0,8,9,0,0,0,3,19,36,null,null,"ウェーブ21の方々に将棋教室を開いていただいた。普段将棋に慣れ親しんでいない子ども達には将棋の楽しさが伝わり、将棋が好きな子には、戦略のコツを教わる機会になった。"]
[null,null,null,"お話ワンダーランド",1,null,null,null,null,5,null,1,null,null,2,8,null,null,"ウェーブ21の方に、色々な絵本の読み聞かせをしていただいた。じっくり物語に触れたり、世界観を感じたりする良い機会になった。"]
[null,null,null,"夏休み説明会",1,"京都市藤森竹田児童館",null,1,0,0,0,0,0,9,9,10,"京都市藤森竹田児童館\n",null,"学童クラブの夏休みの過ごし方について丁寧に説明する機会になった。初めての夏休みの1年生の保護者が積極的に参加して下さった。"]
[null,null,null,"防犯教室",1,"京都市藤森竹田児童館",null,0,0,0,0,0,0,3,3,3,"京都市藤森竹田児童館",null,"伏見警察署に依頼をし、職員向けに、防犯対策、不審者の対応等の講習をしていただいた。毎年繰り返し実施し再確認をすることは大切だと感じた。"]
[null,null,null,"生き方探究・チャレンジ体験",5,"京都市藤森中学校",null,0,0,0,0,0,20,2,2,24,"京都市藤森竹田児童館",null,"藤森中学校の生徒が児童館の仕事を学ぶ為、職場体験に来られた。熱心に取組んでいた。"]
[null,null,null,"なかよしマーケット会議",3,"うずらの里児童館\n住吉児童館\n深草児童館\n伏見板橋児童館\n京都市藤森竹田児童館",null,0,0,0,0,0,0,5,15,15,"うずらの里児童館\n住吉児童館\n深草児童館\n伏見板橋児童館\n京都市藤森竹田児童館",null,"実行委員会をもち、工作に使う材料から費用、館ごとにどのような商品を作り、いつどのように商品の分配・仕入れを行うかなどを話し合った。"]
[null,null,null,"みんなおいでいっしょにあそぼ会議",5,"みんなおいで\nいっしょにあそぼ\n実行委員会",null,0,0,0,0,0,0,7,56,56,"みんなおいで\nいっしょにあそぼ\n実行委員会",null,"イベント当日までは児童館が中心となり企画をし、当日の運営は地域の各機関の方々と連携を取りながら実施。乳幼児親子さんの子育て応援になるような取り組みを目指し、今年も喜んで頂くことができた。"]
[null,null,null,"第30回みんなおいでいっしょにあそぼ",1,null,null,29,null,null,null,null,null,null,28,57]
[null,null,null,"ぐんぐんひろば会議",4,"竹田学区・民生児童委員会\n京都市改進保育所\n京都市竹田幼稚園\n京都市藤森竹田児童館",null,null,null,null,null,null,null,null,20,20,"竹田学区・民生児童委員会\n京都市改進保育所\n京都市竹田幼稚園\n京都市藤森竹田児童館",null,"竹田学区の子育て支援が充実したものになるよう、改進保育所、竹田幼稚園、民生協議会と共催して実施。今年はエレクトーン演奏者の方をお呼びし、本格的な生演奏を、知っている楽曲もたくさんで、保護者の方や、園児さん達も楽しんでくれていた。寒い時期だった為、今回の内容であれば、暖かい時期の方が演奏しやすかったことが反省だった。"]
[null,null,null,"第8回ぐんぐんひろば",1,null,null,74,null,null,null,null,null,null,47,121]
[null,null,null,"児童館連絡協議会",3,"京都市藤森中学校\n京都市藤ノ森小学校\n京都市竹田小学校\n京都市伏見いきいき市民活動センター\n京都市改進保育所\nＮＰＯ人権ネットワークウェーブ２１",null,0,0,0,0,0,0,0,19,19,"京都市藤森中学校\n京都市藤ノ森小学校\n京都市竹田小学校\n京都市伏見いきいき市民活動センター\n京都市改進保育所\nＮＰＯ人権ネットワークウェーブ２１",null,"色々な施設とその機能や立場の中で子どもを捉え、情報交換することはとても有効であった。今後も継続して実施していきたい。"]
[null,null,null,"学童クラブ登録説明会（午前）",1,"京都市藤森竹田児童館",null,0,0,0,0,0,0,14,8,8,"京都市藤森竹田児童館",null,"学童クラブに登録していただいた保護者を対象（主に新1年生）に、学童クラブでの過ごし方などをしおりに沿って丁寧に説明を行なった。保育所の修了式と重なる日程になってしまい、その保護者については、個別説明の日を設けた。"]
[null,null,null,"学童クラブ登録説明会（午後）",1,null,null,0,0,0,0,0,0,13,7,7]
[null,null,null,"合　　　　計",{"$f":"SUM(E7:E27)","v":66},"－",null,{"$f":"SUM(H7:H27)","v":247},17,35,3,2,20,null,{"$f":"SUM(O7:O27)","v":559},{"$f":"SUM(P7:P27)","v":1057}]
[]
[null,null,null,"活　　動　　内　　容",null,null,null,"活　　動　　人　　数",null,null,null,"成　　　果　　　と　　　課　　　題"]
[null,null,null,null,null,null,null,"中高生","大学生","大　人","合　計"]
[null,null,null,null,null,null,null,null,null,null,{"$f":"SUM(H32:J32)","v":0}]
[null,null,null,null,null,null,null,null,null,null,{"$f":"SUM(H33:J33)","v":0}]
[null,null,null,null,null,null,null,null,null,null,0]
[null,null,"(2)ボランティア\n　　活動の推進",null,null,null,null,null,null,null,0]
[null,null,null,null,null,null,null,null,null,null,0]
[null,null,null,null,null,null,null,null,null,null,0]
[null,null,null,null,null,null,null,null,null,null,0]
[null,null,null,null,null,null,null,null,null,null,0]
[null,null,null,null,null,null,null,null,null,null,0]
[null,null,null,null,null,null,null,null,null,null,0]
[null,null,null,null,null,null,null,null,null,null,0]
[null,null,null,null,null,null,null,null,null,null,0]
[null,null,null,null,null,null,null,null,null,null,0]
[null,null,null,null,null,null,"合　計",{"$f":"SUM(H32:H44)","v":0},{"$f":"SUM(I32:I44)","v":0},{"$f":"SUM(J32:J44)","v":0},{"$f":"SUM(K32:K44)","v":0}]
[]
[null,null,null,"連　　携　　団　　体　　等","連　　　　　携　　　　　内　　　　　容",null,null,null,null,null,null,null,"成　　　果　　　と　　　課　　　題"]
[]
[]
[]
[]
[]
[]
[null,null,"(3)地域との連携を\n　促進する活動"]

{"sheet":"児童館事業年間活動報告書10-４雛型","index":3,"n_rows":54,"n_cols":13,"rows_kept":54,"cut":false,"hidden":false,"merged":[[3,0,58,0],[3,6,4,7],[3,8,4,9],[3,10,4,11],[3,12,4,12],[17,11,18,12],[31,4,32,4],[17,8,18,10],[17,6,18,7],[31,7,32,8],[31,9,32,10],[3,1,16,1],[33,4,38,4],[39,4,43,4],[44,4,48,4],[17,1,58,1],[3,3,4,5],[5,3,16,4],[5,10,16,11],[5,12,16,12],[19,3,23,4],[19,6,23,7],[19,8,23,10],[19,11,23,12],[33,3,38,3],[17,3,18,5],[31,3,32,3],[31,5,32,6],[31,11,32,12],[33,7,38,8],[33,9,38,10],[49,4,52,4],[53,4,57,4],[39,3,43,3],[44,3,48,3],[49,3,52,3],[53,3,57,3],[39,7,43,8],[44,7,48,8],[49,7,52,8],[53,7,57,8],[33,6,38,6],[39,6,43,6],[44,6,48,6],[49,6,52,6],[53,6,57,6],[39,9,43,10],[44,9,48,10],[49,9,52,10],[53,9,57,10],[33,11,38,12],[39,11,43,12],[44,11,48,12],[49,11,52,12],[53,11,57,12]]}
[null,null,null,null,null,null,null,null,null,null,null,null,"＜様式１０－４＞"]
[null,null,null,null,"令和4年（2022）年度　　　　　　　児　童　館　事　業　年　間　活　動　報　告　書　　　　（京都市藤森竹田）児　童　館"]
[]
["地　　　域　　　福　　　祉　　　促　　　進　　　機　　　能","基　本　活　動",null,"組織名称",null,null,"構成団体・個人",null,"会議／取組頻度",null,"議題／取組内容",null,"成果と課題"]
[]
[null,null,null,"\n\n児童館連絡協議会",null,null,"改進保育所",null,null,null,"藤森竹田児童館を取り巻く地域に住む乳幼児、または児童、生徒の健全育成を目指して、教育実践を担っている各種団体が集い、情報交換を行うとともに、子どもの実態把握と課題解決に向けた具体的取組や教育支援の在り方について協議をすすめる。",null,"色々な施設とその機能や立場の中で子どもを捉え、情報交換することはとても有効であり、今後も継続して実施していきたい。"]
[null,null,null,null,null,null,"藤ノ森小学校"]
[null,null,null,null,null,null,"竹田小学校"]
[null,null,"(4)児童館を支える地域",null,null,null,"藤森中学校"]
[null,null,"   組織作り",null,null,null,"ＮＰＯ人権ネットワークウェーブ２１"]
[null,null,null,null,null,null,"藤森竹田児童館"]
[null,null,null,null,null,null,"伏見いきいき市民活動センター"]
[]
[]
[]
[]
[]
[null,"推　進　活　動",null,"会場提供・備品貸出等",null,null,"使　用　目　的",null,"提供先（団体・機関等）",null,null,"成果と課題"]
[]
[null,null,null,"大型絵本・スマートボール",null,null,"おまつりや行事に使用",null,"近隣児童館・保育所・小中学校",null,null,"おまつりや行事の際にスマートボール台や大型絵本を活用してもらい、役立ててもらうことが出来ている。"]
[]
[]
[]
[]
[]
[null,null,"(5)地域への施設提供"]
[]
[]
[]
[]
[]
[null,null,null,"調査名","調査目的","調査対象",null,"調査主体",null,"調査方法",null,"成果と課題"]
[]
[null,null,null,"児童館利用者共通アンケート","利用しやすい児童館をめざしていくなかで、利用者のニーズを新式するため",null,"児童館全利用者","京都市社会福祉協議会",null,"選択式と記述式を含む\nアンケート用紙への記入",null,"子ども達の回答からは、楽しく過ごしているという回答を多数いただくことができた。乳幼児親子からも、満足して参加してくれていると回答をいただけた。学童クラブ保護者からは、コロナ対策もあり、理解しているが、体を動かして遊べる機会を作って欲しいというご意見もいただいた。"]
[]
[]
[]
[]
[]
[null,null,null,"幼児クラブ『きらきら』","１年を振り返っての利用の感想と今後への要望について",null,"今年度の乳幼児クラブ\n『きらきら』登録者全員","京都市藤森竹田児童館",null,"選択式と記述式を含む\nアンケート用紙への記入",null,"お家で出来ないことや、季節の行事などを意識した取組を企画、また、それらを通して親子でのふれあいにつなげてもらうことができるよう促した。参加されている様子からも、親子共に楽しいと思ってもらえていることを感じられ、幼児クラブの目的に沿うことができたので良かったと感じた。今後も親子共に、充実してもらえるよう工夫していきたい。"]
[]
[]
[]
[]
[null,null,null,"すくすくひろば","１年を振り返っての利用の感想と今後への要望について",null,"今年度のすくすくひろば\nの登録の乳幼児親子全員","京都市藤森竹田児童館",null,"選択式と記述式を含む\nアンケート用紙への記入",null,"ほとんどの保護者から、楽しかった。という意見を頂くことができ、毎週楽しみにしていたと感じてくれている方が多かった。一方で、実施時間が短いので遊び足りないと感じることがあったという意見もいただいた。０際～１歳半までの対象であり、取り組みの内容を考えることが難しく、月齢によっては、難しすぎる、もしくは簡単すぎるという問題があり、今後の課題と感じている。"]
[]
[]
[]
[null,null,"(6)地域調査活動"]
[null,null,null,"みんなおいでいっしょにあそぼ","行事の参加者に対して、感想と今後への要望について",null,"取組に参加していただいた方全員","みんなおいでいっしょにあそぼ実行委員会",null,"選択式と記述式を含む\nアンケート用紙への記入",null,"今年度も定員を設けて実施。事前の受付では定員に達し、子育て親子のニーズを感じることができた。参加した保護者からも、生の演奏を聴けてよかった、大人も子どもも楽しむことができたと、喜びの声を聞くことができた。"]
[]
[]
[]
[null,null,null,"ぐんぐんひろば","行事の参加者に対して、感想と今後への要望について",null,"取組に参加していただいた方全員","竹田学区・民生児童委員会\n京都市改進保育所\n京都市竹田幼稚園\n京都市藤森竹田児童館",null,"選択式と記述式を含む\nアンケート用紙への記入",null,"アンケートでは全ての保護者から楽しかったという回答を頂けた。子ども達が知っている曲を多く演奏していただいたことで、とても楽しかったという声をいただけた。演奏した曲数も多く、また開いて欲しいという声をもらえた。"]

{"sheet":"＜様式10-5＞","index":4,"n_rows":34,"n_cols":7,"rows_kept":34,"cut":false,"hidden":false,"merged":[[3,6,4,6],[3,0,4,0],[5,0,34,0],[3,1,4,1],[3,2,4,2],[3,3,4,3],[3,4,4,4],[3,5,4,5],[5,1,10,1],[5,2,10,2],[23,6,28,6],[17,1,22,1],[17,2,22,2],[17,3,22,3],[17,4,22,4],[17,5,22,5],[17,6,22,6],[11,1,16,1],[11,2,16,2],[11,3,16,3],[11,4,16,4],[11,5,16,5],[23,1,28,1],[23,2,28,2],[23,3,28,3],[23,4,28,4],[23,5,28,5],[5,3,10,3],[5,4,10,4],[5,5,10,5],[5,6,10,6],[11,6,16,6]]}
[null,null,null,null,null,null,"＜様式１０－５＞"]
[null,"令和4年（2022）年度　　　　　　児　童　館　事　業　年　間　活　動　報　告　書　　　 　　 　　（　京都市藤森竹田　）児　童　館"]
[]
[null,"広報物の種類","発行頻度","広報対象","広報方法","広報内容","成果と課題"]
[]
["広　　　　　　報　　　　　　活　　　　　　動","児童館ニュース","12回\n（毎月1回）","地域全体","配布・掲示","月末に、翌月の行事予定をお知らせする。","児童館ニュースは、広く地域住民に見ていただけるよう掲示。小学校・近隣の施設などにも掲示をお願いし、児童館の取組について地域に知っていただく為に、取組の内容や、紙面の見やすさを良いものにしていきたい。"]
[]
[]
[]
[]
[]
[null,"幼児クラブ『きらきら』だより","10回\n（毎月1回）\n※5月より実施","子育て家庭","配布・掲示","月末に、翌月の行事予定をお知らせする。","幼児クラブ『きらきら』の参加者の方に、詳しい取組内容をお伝えできるよう、前月の最終週には翌月の予定を配布している。持ち物や服装、紙面を通して丁寧にお伝えできるよう心掛けている。おたよりの配布により、取組の内容や持ち物の心積りをしてもらえた。\n"]
[]
[]
[]
[]
[]
[null,"すくすくひろばだより","10回\n（毎月1回）\n※5月より実施","子育て家庭","配布・掲示","月末に、翌月の行事予定をお知らせする。\n","すくすくひろばだよりは、翌月の予定をいち早くお知らせできるよう、前月の最終週には翌月のおたよりを発行している。今年度は、定員に達してからも申込希望の方が多く、来年度も保護者に求められるような場を目指していきたい。"]
[]
[]
[]
[]
[]
[null,"ほっとサロンのチラシ・ポスター","11回\n（毎月1回）\n※夏季長期休み\nのみ休止","子育て家庭","配布・掲示","その日の取組終了時に翌月の内容を確定し、25日頃までにチラシとポスターを作成。\n主任児童委員の方より、民生会議にて地域への貼り出しもお願いしていただいている。","地域の方が広く、ポスターの掲示をして下さり、赤ちゃん訪問時などにも参加の声掛けをして下さっている。保育所でも、乳幼児親子に声をかけてくださっている。\n各機関の連携を強化し、取組内容の充実と継続を今後も続けていきたい。"]
[]
[]
[]
[]
[]
[null,"みんなおいでいっしょにあそぼチラシ・ポスター","年1回","子育て家庭","配布・掲示","地域子育てステーション事業として開始した事業。実行委員会を持ち、イベントの企画とチラシ・ポスターの作成や依頼・受付などを分担し12月にイベントを実施している。","竹田学区の子育て支援が充実したものになるよう、児童館・保育園・保育所・地域の民生児童委員の方々や社協・子どもはぐくみ室とも連携を取りつつ実施している。新型コロナ感染拡大防止の為、定員を設けて実施。事前の受付は定員に達し、高いニーズを感じた。"]
[null,"ぐんぐんひろばのチラシ・ポスター","年１回","子育て家庭","配布・掲示","竹田学区の子育て家庭支援活動の一環として、今年度から始まった取組み。\n民生会議、保育所、幼稚園でも配布をし、たくさんの方に参加していただけるようお知らせをする。","竹田学区の子育て支援が充実したものになるよう、改進保育所、竹田幼稚園、民生協議会と共催して実施。今年はエレクトーン演奏者の方をお呼びし、本格的な生演奏を、知っている楽曲もたくさんで、保護者の方や、園児さん達も楽しんでくれていた。寒い時期だった為、今回の内容であれば、暖かい時期の方が演奏しやすかったことが反省だった。"]
[null,"ふじたけプチ縁日のチラシ・ポスター","年1回","地域全体","配布・掲示","小学校の夏期休業中の3日間にプチ縁日を予定し、チケット作成・『コイン落とし』『ヨーヨー釣り』『くじ引き』などのコーナーの企画準備等を行い、ポスター掲示もしていたが、新型コロナウイルス感染拡大の為急遽中止となった。","新型コロナウイルス感染防止のため中止。"]
[null,"おもいっきりあそぼうdayのチラシ・ポスター","年1回","子育て家庭","配布・掲示・ホームページ掲載","体育館を借りて、毎週火・金で行っているあそぼうdayを大規模に実施。事前受付制で行った。","普段よりも広々とした空間で遊んでもらい、身体を使いおもいっきり遊んでもらった。また、目玉コーナーの段ボール迷路や缶バッジ作成、お菓子つりのコーナーもとても喜んで下さった。このような企画を楽しみにされているという声もあった。ホームページへの掲載で、広く広報もできた。"]
[null,"プチふじたけまつりのチラシ・ポスター","年1回","地域全体","配布・掲示","児童館の年に一度のおまつり。\nチラシとポスターを作成。\nウェーブ２１の方々にも協力をお願いした。","普段の土曜日利用の学童クラブの子どもだけでなく、自由来館もたくさんの参加があった。また、地域の乳幼児さんや高学年の子ども達の参加もあり賑やかなおまつりになった。今年度はプチだったが、開催を楽しみにしている様子がたくさんあり、来年度以降も引き続き実施していきたい。"]

{"sheet":"Sheet1","index":5,"n_rows":0,"n_cols":0,"rows_kept":0,"cut":false,"hidden":false,"merged":[]}

{"sheet":"ファイル一覧","index":6,"n_rows":21,"n_cols":2,"rows_kept":21,"cut":false,"hidden":false,"merged":[]}
["ファイル名","最終更新日時"]
["2023_05_17_16_04_23_藤森竹田児童館_事業活動報告書101～105_2022.xlsm","2023-05-17T16:04:11"]
["2023_05_17_15_46_20_藤森竹田児童館_事業活動報告書101～105_2022.xlsm","2023-05-17T15:46:07"]
["2023_05_17_15_32_31_藤森竹田児童館_事業活動報告書101～105_2022.xlsm","2023-05-17T15:32:17"]
["2023_05_17_15_19_42_藤森竹田児童館_事業活動報告書101～105_2022.xlsm","2023-05-17T15:19:30"]
["2023_05_17_14_54_48_藤森竹田児童館_事業活動報告書101～105_2022.xlsm","2023-05-17T14:54:36"]
["2023_05_17_13_04_38_藤森竹田児童館_事業活動報告書101～105_2022.xlsm","2023-05-17T13:04:25"]
["2023_05_17_13_02_21_藤森竹田児童館_事業活動報告書101～105_2022.xlsm","2023-05-17T13:02:09"]
["2023_05_17_12_57_21_藤森竹田児童館_事業活動報告書101～105_2022.xlsm","2023-05-17T12:57:09"]
["2023_05_17_12_43_24_藤森竹田児童館_事業活動報告書101～105_2022.xlsm","2023-05-17T12:43:11"]
["2023_05_17_12_36_03_藤森竹田児童館_事業活動報告書101～105_2022.xlsm","2023-05-17T12:35:52"]
["2023_05_17_12_33_11_藤森竹田児童館_事業活動報告書101～105_2022.xlsm","2023-05-17T12:32:58"]
["2023_05_17_11_57_07_藤森竹田児童館_事業活動報告書101～105_2022.xlsm","2023-05-17T11:56:55"]
["2023_05_16_14_45_46_藤森竹田児童館_事業活動報告書101～105_2022.xlsm","2023-05-16T14:45:35"]
["2023_05_16_14_05_45_藤森竹田児童館_事業活動報告書101～105_2022.xlsm","2023-05-16T14:05:33"]
["2023_05_15_19_08_17_藤森竹田児童館_事業活動報告書101～105_2022.xlsm","2023-05-15T19:08:06"]
["2023_05_15_09_53_34_藤森竹田児童館_事業活動報告書101～105_2022.xlsm","2023-05-15T09:53:26"]
["2023_05_15_09_23_05_藤森竹田児童館_事業活動報告書101～105_2022.xlsm","2023-05-15T09:22:53"]
["2023_05_15_08_35_20_藤森竹田児童館_事業活動報告書101～105_2022.xlsm","2023-05-15T08:35:09"]
["2023_05_13_16_24_33_藤森竹田児童館_事業活動報告書101～105_2022.xlsm","2023-05-13T16:24:20"]
["2023_05_13_12_04_00_藤森竹田児童館_事業活動報告書101～105_2022.xlsm","2023-05-13T12:03:47"]